[Event "Late-Titled-Tuesday-Blitz-October-17-2023"]
[Site "Chess.com"]
[Date "2023.10.17"]
[Round "4"]
[White "Willychess95"]
[Black "szachmistrz2500"]
[Result "1-0"]
[WhiteElo "2664"]
[BlackElo "2425"]
[TimeControl "180+1"]
[EndTime "14:38:47 PDT"]
[Termination "Willychess95 won by resignation"]

1. e4 {[%clk 0:02:55]} 1... c5 {[%clk 0:02:59.7]} 2. Nf3 {[%clk 0:02:54.6]} 2...
e6 {[%clk 0:02:59.5]} 3. g3 {[%clk 0:02:52.8]} 3... Nc6 {[%clk 0:02:55]} 4. Bg2
{[%clk 0:02:52.1]} 4... g6 {[%clk 0:02:50.9]} 5. O-O {[%clk 0:02:51.2]} 5... Bg7
{[%clk 0:02:51.1]} 6. c3 {[%clk 0:02:51.4]} 6... d5 {[%clk 0:02:45]} 7. d4
{[%clk 0:02:52.3]} 7... dxe4 {[%clk 0:02:43.2]} 8. Ng5 {[%clk 0:02:46.8]} 8...
cxd4 {[%clk 0:02:40.1]} 9. Nxe4 {[%clk 0:02:44.8]} 9... Nf6 {[%clk 0:02:27.6]}
10. Nxf6+ {[%clk 0:02:36.8]} 10... Qxf6 {[%clk 0:02:25.1]} 11. cxd4 {[%clk
0:02:23.3]} 11... Qxd4 {[%clk 0:02:24.2]} 12. Qb3 {[%clk 0:02:21]} 12... O-O
{[%clk 0:02:19.5]} 13. Nc3 {[%clk 0:02:17.1]} 13... Qb4 {[%clk 0:02:15.1]} 14.
Qxb4 {[%clk 0:02:07.5]} 14... Nxb4 {[%clk 0:02:14.8]} 15. Rd1 {[%clk 0:02:01.5]}
15... e5 {[%clk 0:02:13.3]} 16. Bd2 {[%clk 0:01:34.9]} 16... Bg4 {[%clk
0:02:08]} 17. f3 {[%clk 0:01:26.3]} 17... Bf5 {[%clk 0:02:02.6]} 18. Ne4 {[%clk
0:01:23.6]} 18... Nc2 {[%clk 0:01:54.1]} 19. Rac1 {[%clk 0:01:21.8]} 19... Bxe4
{[%clk 0:01:53.6]} 20. fxe4 {[%clk 0:01:20.3]} 20... Rac8 {[%clk 0:01:53.2]} 21.
Bf1 {[%clk 0:01:07.6]} 21... Nd4 {[%clk 0:01:50.5]} 22. Be3 {[%clk 0:01:01.1]}
22... Rfd8 {[%clk 0:01:39.5]} 23. Bc4 {[%clk 0:00:54.7]} 23... h5 {[%clk
0:01:13.1]} 24. Kf2 {[%clk 0:00:52.5]} 24... a6 {[%clk 0:01:06]} 25. Bd5 {[%clk
0:00:49.5]} 25... b5 {[%clk 0:01:01.9]} 26. Bg5 {[%clk 0:00:48.1]} 26... Rxc1
{[%clk 0:00:54.9]} 27. Rxc1 {[%clk 0:00:47.1]} 27... Rd6 {[%clk 0:00:55.8]} 28.
Rc7 {[%clk 0:00:45.5]} 28... Ne6 {[%clk 0:00:54]} 29. Rc8+ {[%clk 0:00:42.9]}
29... Kh7 {[%clk 0:00:53.3]} 30. Be7 {[%clk 0:00:40.3]} 30... Rd7 {[%clk
0:00:50.8]} 31. Bb4 {[%clk 0:00:36.9]} 31... Bf6 {[%clk 0:00:41.6]} 32. Rc6
{[%clk 0:00:34]} 32... Kg7 {[%clk 0:00:38.7]} 33. Bxe6 {[%clk 0:00:28.6]} 33...
fxe6 {[%clk 0:00:38.4]} 34. Rxa6 {[%clk 0:00:28.9]} 34... Rd4 {[%clk 0:00:37.3]}
35. Bc3 {[%clk 0:00:29.2]} 35... Rxe4 {[%clk 0:00:37.1]} 36. Rb6 {[%clk
0:00:28.4]} 36... Ra4 {[%clk 0:00:30.2]} 37. a3 {[%clk 0:00:28]} 37... Ra7
{[%clk 0:00:23.6]} 38. Rxb5 {[%clk 0:00:26.9]} 38... e4 {[%clk 0:00:23.8]} 39.
Bxf6+ {[%clk 0:00:26.1]} 39... Kxf6 {[%clk 0:00:24.2]} 40. Ke3 {[%clk
0:00:26.5]} 40... Ra4 {[%clk 0:00:24.5]} 41. Rb4 {[%clk 0:00:25.5]} 41... Ra5
{[%clk 0:00:24.7]} 42. a4 {[%clk 0:00:23.5]} 42... Ke5 {[%clk 0:00:23.9]} 43.
Rb5+ {[%clk 0:00:23.1]} 43... Rxb5 {[%clk 0:00:23.2]} 44. axb5 {[%clk 0:00:24]}
44... Kd5 {[%clk 0:00:23.2]} 45. b4 {[%clk 0:00:23.8]} 45... g5 {[%clk
0:00:21.7]} 46. h4 {[%clk 0:00:22.8]} 46... gxh4 {[%clk 0:00:20.7]} 47. gxh4
{[%clk 0:00:23.1]} 47... e5 {[%clk 0:00:20.3]} 48. b6 {[%clk 0:00:23.5]} 48...
Kc6 {[%clk 0:00:20.7]} 49. Kxe4 {[%clk 0:00:24.1]} 49... Kxb6 {[%clk 0:00:21.2]}
50. Kxe5 {[%clk 0:00:24.5]} 50... Kb5 {[%clk 0:00:22]} 51. Kf5 {[%clk
0:00:25.4]} 51... Kxb4 {[%clk 0:00:22.6]} 52. Kg5 {[%clk 0:00:26.3]} 52... Kc5
{[%clk 0:00:23.2]} 53. Kxh5 {[%clk 0:00:26.9]} 53... Kd6 {[%clk 0:00:23.9]} 54.
Kg6 {[%clk 0:00:27.5]} 54... Ke7 {[%clk 0:00:24.4]} 55. Kg7 {[%clk 0:00:28]}
55... Ke6 {[%clk 0:00:24.9]} 56. h5 {[%clk 0:00:28.9]} 56... Kf5 {[%clk
0:00:25.2]} 57. h6 {[%clk 0:00:29.8]} 1-0

[Event "Late-Titled-Tuesday-Blitz-October-17-2023"]
[Site "Chess.com"]
[Date "2023.10.17"]
[Round "4"]
[White "Mikhail_Golubev"]
[Black "FuenfgegenWilly"]
[Result "0-1"]
[WhiteElo "2552"]
[BlackElo "2382"]
[TimeControl "180+1"]
[EndTime "14:38:54 PDT"]
[Termination "FuenfgegenWilly won by resignation"]

1. e4 {[%clk 0:03:00.9]} 1... e5 {[%clk 0:02:39]} 2. Nf3 {[%clk 0:03:00.3]} 2...
Nc6 {[%clk 0:02:38.8]} 3. Bc4 {[%clk 0:03:00.9]} 3... Nf6 {[%clk 0:02:38.8]} 4.
Ng5 {[%clk 0:03:00.5]} 4... d5 {[%clk 0:02:38.8]} 5. exd5 {[%clk 0:03:01.2]}
5... b5 {[%clk 0:02:39.4]} 6. Bf1 {[%clk 0:03:00.5]} 6... h6 {[%clk 0:02:39.5]}
7. Nxf7 {[%clk 0:02:56]} 7... Kxf7 {[%clk 0:02:40.4]} 8. dxc6 {[%clk 0:02:56.2]}
8... Bc5 {[%clk 0:02:41]} 9. d4 {[%clk 0:02:44.8]} 9... Bxd4 {[%clk 0:02:38.4]}
10. Nc3 {[%clk 0:02:01.5]} 10... Ng4 {[%clk 0:01:37.4]} 11. Qf3+ {[%clk
0:01:45]} 11... Ke8 {[%clk 0:01:29.1]} 12. Be3 {[%clk 0:01:27.4]} 12... Rf8
{[%clk 0:01:27.2]} 13. Qe2 {[%clk 0:00:38.3]} 13... Rxf2 {[%clk 0:01:04.2]} 14.
Bxf2 {[%clk 0:00:16.8]} 14... Bxf2+ {[%clk 0:01:05.1]} 15. Qxf2 {[%clk
0:00:16.5]} 15... Nxf2 {[%clk 0:01:05.8]} 16. Kxf2 {[%clk 0:00:17.2]} 16... Qd4+
{[%clk 0:01:03.2]} 17. Ke1 {[%clk 0:00:15.3]} 17... b4 {[%clk 0:01:00.9]} 18.
Rd1 {[%clk 0:00:13.7]} 18... Qe3+ {[%clk 0:00:56.4]} 19. Ne2 {[%clk 0:00:13.8]}
19... Ba6 {[%clk 0:00:49.7]} 20. h4 {[%clk 0:00:11.6]} 20... Rd8 {[%clk
0:00:21]} 21. Rxd8+ {[%clk 0:00:10.9]} 21... Kxd8 {[%clk 0:00:21.9]} 22. Rh3
{[%clk 0:00:11.2]} 22... Qe4 {[%clk 0:00:22.6]} 23. Kd2 {[%clk 0:00:10.2]} 23...
Qxc6 {[%clk 0:00:17.6]} 24. Re3 {[%clk 0:00:10.1]} 24... Qd5+ {[%clk 0:00:14.1]}
25. Ke1 {[%clk 0:00:10.3]} 25... Qxa2 {[%clk 0:00:12.9]} 26. Rxe5 {[%clk
0:00:10]} 26... Qb1+ {[%clk 0:00:11.8]} 27. Kf2 {[%clk 0:00:09.2]} 27... Qxb2
{[%clk 0:00:11.9]} 28. Rd5+ {[%clk 0:00:08.5]} 28... Kc8 {[%clk 0:00:11.1]} 29.
Nd4 {[%clk 0:00:08.7]} 29... Bxf1 {[%clk 0:00:10.3]} 30. Kxf1 {[%clk 0:00:09.6]}
30... Qc1+ {[%clk 0:00:09.9]} 31. Ke2 {[%clk 0:00:09.6]} 31... Qf4 {[%clk
0:00:08.8]} 32. Rd8+ {[%clk 0:00:09]} 32... Kb7 {[%clk 0:00:08]} 33. Kd3 {[%clk
0:00:09.2]} 33... Qg3+ {[%clk 0:00:07.8]} 34. Kc4 {[%clk 0:00:09.4]} 34... Qxh4
{[%clk 0:00:07.3]} 35. Kb5 {[%clk 0:00:08.9]} 35... Qxd8 {[%clk 0:00:06.3]} 36.
Nc6 {[%clk 0:00:06.4]} 36... Qd5+ {[%clk 0:00:06.1]} 0-1

[Event "Late-Titled-Tuesday-Blitz-October-17-2023"]
[Site "Chess.com"]
[Date "2023.10.17"]
[Round "4"]
[White "Alex_Sahakyan2006"]
[Black "Road2GM3000"]
[Result "1-0"]
[WhiteElo "2765"]
[BlackElo "2399"]
[TimeControl "180+1"]
[EndTime "14:38:55 PDT"]
[Termination "Alex_Sahakyan2006 won on time"]

1. d4 {[%clk 0:03:00.9]} 1... d5 {[%clk 0:02:59.5]} 2. Nf3 {[%clk 0:03:00.7]}
2... Nf6 {[%clk 0:02:59.2]} 3. c4 {[%clk 0:03:01.4]} 3... c6 {[%clk 0:02:59.3]}
4. e3 {[%clk 0:03:01.2]} 4... a6 {[%clk 0:02:56.7]} 5. Rg1 {[%clk 0:02:58.8]}
5... Bf5 {[%clk 0:02:52.7]} 6. Nc3 {[%clk 0:02:56.4]} 6... e6 {[%clk 0:02:52.3]}
7. a3 {[%clk 0:02:56.2]} 7... Nbd7 {[%clk 0:02:51.6]} 8. h3 {[%clk 0:02:56]}
8... h5 {[%clk 0:02:51.3]} 9. Nh4 {[%clk 0:02:52.4]} 9... Bh7 {[%clk 0:02:49.2]}
10. g4 {[%clk 0:02:52.9]} 10... Ne4 {[%clk 0:02:46.5]} 11. Nf3 {[%clk
0:02:52.5]} 11... Nxc3 {[%clk 0:02:43.5]} 12. bxc3 {[%clk 0:02:51.1]} 12... Nf6
{[%clk 0:02:37.8]} 13. Ne5 {[%clk 0:02:43.7]} 13... Ne4 {[%clk 0:02:31.7]} 14.
Qb3 {[%clk 0:02:43.5]} 14... Rb8 {[%clk 0:02:01.8]} 15. Ra2 {[%clk 0:02:36.2]}
15... Bd6 {[%clk 0:02:01.3]} 16. Nd3 {[%clk 0:02:30.2]} 16... Qe7 {[%clk
0:01:46.4]} 17. c5 {[%clk 0:02:07.2]} 17... Bc7 {[%clk 0:01:44.2]} 18. f3 {[%clk
0:02:06.2]} 18... Qh4+ {[%clk 0:01:37.2]} 19. Kd1 {[%clk 0:02:05.2]} 19... Ng3
{[%clk 0:01:28.9]} 20. Nf2 {[%clk 0:01:59.9]} 20... hxg4 {[%clk 0:01:19.9]} 21.
hxg4 {[%clk 0:01:57.1]} 21... f5 {[%clk 0:01:10]} 22. gxf5 {[%clk 0:01:51.3]}
22... Bxf5 {[%clk 0:01:07.9]} 23. e4 {[%clk 0:01:49.6]} 23... dxe4 {[%clk
0:00:52.9]} 24. fxe4 {[%clk 0:01:50.5]} 24... Nxe4 {[%clk 0:00:42.2]} 25. Nxe4
{[%clk 0:01:48]} 25... Qxe4 {[%clk 0:00:41.7]} 26. Re2 {[%clk 0:01:48.6]} 26...
Bg4 {[%clk 0:00:37.6]} 27. Rxg4 {[%clk 0:01:41.6]} 27... Qxg4 {[%clk 0:00:37.6]}
28. Kc2 {[%clk 0:01:41.3]} 28... Rh6 {[%clk 0:00:30.5]} 29. Bxh6 {[%clk
0:01:39.6]} 29... gxh6 {[%clk 0:00:31.4]} 30. Qxe6+ {[%clk 0:01:35.3]} 30...
Qxe6 {[%clk 0:00:31]} 31. Rxe6+ {[%clk 0:01:36.2]} 31... Kd7 {[%clk 0:00:31.3]}
32. Bh3 {[%clk 0:01:31.7]} 32... Rf8 {[%clk 0:00:26.6]} 33. Rxh6+ {[%clk
0:01:19.9]} 33... Kd8 {[%clk 0:00:25.9]} 34. Rh7 {[%clk 0:01:19.2]} 34... Ba5
{[%clk 0:00:24.4]} 35. Rd7+ {[%clk 0:01:16.7]} 35... Ke8 {[%clk 0:00:24.3]} 36.
Rxb7 {[%clk 0:01:16.9]} 36... Rf3 {[%clk 0:00:19.1]} 37. Bd7+ {[%clk 0:01:08.4]}
37... Kd8 {[%clk 0:00:19]} 38. Bxc6 {[%clk 0:01:07.6]} 38... Rxc3+ {[%clk
0:00:14.7]} 39. Kb2 {[%clk 0:01:08.2]} 39... Kc8 {[%clk 0:00:11]} 40. Ra7 {[%clk
0:01:04.8]} 40... Rd3 {[%clk 0:00:09.8]} 41. d5 {[%clk 0:01:01.4]} 41... Bd8
{[%clk 0:00:03.7]} 42. d6 {[%clk 0:00:57.6]} 42... Bf6+ {[%clk 0:00:02.9]} 43.
Kc2 {[%clk 0:00:57.6]} 43... Rc3+ {[%clk 0:00:02.8]} 44. Kd2 {[%clk 0:00:58.3]}
44... Rb3 {[%clk 0:00:03]} 45. Ra8+ {[%clk 0:00:54.5]} 45... Rb8 {[%clk
0:00:03.7]} 46. Rxa6 {[%clk 0:00:52.4]} 46... Bd4 {[%clk 0:00:03.5]} 47. Ra5
{[%clk 0:00:47.9]} 47... Rb3 {[%clk 0:00:03.7]} 48. d7+ {[%clk 0:00:42.4]} 48...
Kc7 {[%clk 0:00:03.4]} 49. Ra7+ {[%clk 0:00:42]} 49... Kxc6 {[%clk 0:00:02.8]}
50. d8=Q {[%clk 0:00:41.4]} 1-0

[Event "Late-Titled-Tuesday-Blitz-October-17-2023"]
[Site "Chess.com"]
[Date "2023.10.17"]
[Round "4"]
[White "Inepton_Fermion"]
[Black "NateSolon"]
[Result "0-1"]
[WhiteElo "2380"]
[BlackElo "2620"]
[TimeControl "180+1"]
[EndTime "14:38:56 PDT"]
[Termination "NateSolon won on time"]

1. Nf3 {[%clk 0:02:48.6]} 1... d5 {[%clk 0:02:59.8]} 2. b3 {[%clk 0:02:48.7]}
2... Bg4 {[%clk 0:02:55.8]} 3. Bb2 {[%clk 0:02:46.2]} 3... Nd7 {[%clk 0:02:55]}
4. d3 {[%clk 0:02:45.1]} 4... Ngf6 {[%clk 0:02:51]} 5. Nbd2 {[%clk 0:02:44.9]}
5... e6 {[%clk 0:02:51.1]} 6. h3 {[%clk 0:02:44.8]} 6... Bh5 {[%clk 0:02:50.9]}
7. g4 {[%clk 0:02:36.2]} 7... Bg6 {[%clk 0:02:50.8]} 8. Bg2 {[%clk 0:02:36.5]}
8... h6 {[%clk 0:02:46.7]} 9. O-O {[%clk 0:02:33.3]} 9... Bd6 {[%clk 0:02:46.6]}
10. Re1 {[%clk 0:02:31]} 10... O-O {[%clk 0:02:44]} 11. e4 {[%clk 0:02:30.7]}
11... dxe4 {[%clk 0:02:42.8]} 12. dxe4 {[%clk 0:02:31.6]} 12... e5 {[%clk
0:02:41.8]} 13. Nh4 {[%clk 0:02:30.6]} 13... Bh7 {[%clk 0:02:40.4]} 14. Nf5
{[%clk 0:02:30]} 14... Bc5 {[%clk 0:02:38.2]} 15. Nc4 {[%clk 0:02:26.4]} 15...
Re8 {[%clk 0:02:35.8]} 16. Qf3 {[%clk 0:02:21.6]} 16... b5 {[%clk 0:02:22.2]}
17. Na5 {[%clk 0:02:05.1]} 17... Re6 {[%clk 0:02:21.8]} 18. Nb7 {[%clk
0:01:56.8]} 18... Qf8 {[%clk 0:02:17.9]} 19. Nxc5 {[%clk 0:01:55.6]} 19... Qxc5
{[%clk 0:02:18.8]} 20. Qe2 {[%clk 0:01:51.3]} 20... a5 {[%clk 0:02:07.8]} 21. a4
{[%clk 0:01:50]} 21... b4 {[%clk 0:02:07.6]} 22. Rad1 {[%clk 0:01:35.3]} 22...
Nf8 {[%clk 0:02:02.2]} 23. Bc1 {[%clk 0:01:21.4]} 23... Rae8 {[%clk 0:01:45.5]}
24. Be3 {[%clk 0:01:20.5]} 24... Qc3 {[%clk 0:01:45.7]} 25. Rd3 {[%clk 0:01:14]}
25... Qc6 {[%clk 0:01:39.7]} 26. Rd5 {[%clk 0:00:56.4]} 26... Qa8 {[%clk
0:01:31.8]} 27. Rc5 {[%clk 0:00:53.2]} 27... Ng6 {[%clk 0:01:13.7]} 28. Rxc7
{[%clk 0:00:46.5]} 28... Nf4 {[%clk 0:01:14]} 29. Bxf4 {[%clk 0:00:44.1]} 29...
exf4 {[%clk 0:01:14.9]} 30. Qc4 {[%clk 0:00:35.1]} 30... Bxf5 {[%clk 0:00:59.9]}
31. gxf5 {[%clk 0:00:31.3]} 31... R6e7 {[%clk 0:01:00.4]} 32. e5 {[%clk
0:00:16.4]} 32... Qb8 {[%clk 0:00:52.6]} 33. Rxe7 {[%clk 0:00:14.3]} 33... Rxe7
{[%clk 0:00:53.5]} 34. Qxf4 {[%clk 0:00:13]} 34... Nd7 {[%clk 0:00:51.7]} 35. f6
{[%clk 0:00:03.8]} 35... Rxe5 {[%clk 0:00:43.3]} 36. Rxe5 {[%clk 0:00:03.4]}
36... Nxe5 {[%clk 0:00:44.2]} 37. fxg7 {[%clk 0:00:02.8]} 37... Qd6 {[%clk
0:00:43.9]} 38. Qg3 {[%clk 0:00:02.5]} 38... Qd4 {[%clk 0:00:37]} 39. Kh2 {[%clk
0:00:02.2]} 39... Ng6 {[%clk 0:00:37]} 40. h4 {[%clk 0:00:01.5]} 40... Qxh4+
{[%clk 0:00:31.6]} 41. Qxh4 {[%clk 0:00:01.2]} 41... Nxh4 {[%clk 0:00:32.5]} 42.
Be4 {[%clk 0:00:01.4]} 42... Kxg7 {[%clk 0:00:31.9]} 43. Kg3 {[%clk 0:00:02]}
43... Ng6 {[%clk 0:00:32.4]} 44. f4 {[%clk 0:00:02.3]} 44... Kf6 {[%clk
0:00:32.1]} 45. Kf3 {[%clk 0:00:02.2]} 45... h5 {[%clk 0:00:30.2]} 46. Bd5
{[%clk 0:00:02.3]} 46... Ne7 {[%clk 0:00:29.9]} 47. Bc4 {[%clk 0:00:01.9]} 47...
Nf5 {[%clk 0:00:30]} 48. Bd5 {[%clk 0:00:01.6]} 48... Nd4+ {[%clk 0:00:29.7]}
49. Ke4 {[%clk 0:00:01.5]} 49... Nxc2 {[%clk 0:00:30.6]} 50. Bc4 {[%clk
0:00:01.2]} 50... Ne1 {[%clk 0:00:28.8]} 0-1

[Event "Late-Titled-Tuesday-Blitz-October-17-2023"]
[Site "Chess.com"]
[Date "2023.10.17"]
[Round "4"]
[White "Defend1r"]
[Black "alexrustemov"]
[Result "0-1"]
[WhiteElo "2491"]
[BlackElo "2824"]
[TimeControl "180+1"]
[EndTime "14:38:58 PDT"]
[Termination "alexrustemov won by resignation"]

1. e4 {[%clk 0:03:00.9]} 1... e6 {[%clk 0:03:00]} 2. d4 {[%clk 0:03:00.2]} 2...
d5 {[%clk 0:03:00.4]} 3. Nc3 {[%clk 0:03:00.8]} 3... dxe4 {[%clk 0:03:00]} 4.
Nxe4 {[%clk 0:03:01.7]} 4... Bd7 {[%clk 0:02:59.7]} 5. Nf3 {[%clk 0:02:59.8]}
5... Bc6 {[%clk 0:02:59.8]} 6. Bd3 {[%clk 0:03:00.3]} 6... Nd7 {[%clk 0:03:00]}
7. O-O {[%clk 0:02:53.6]} 7... Ngf6 {[%clk 0:03:00.4]} 8. Ng3 {[%clk 0:02:44.5]}
8... Be7 {[%clk 0:03:00.2]} 9. c3 {[%clk 0:02:44.8]} 9... O-O {[%clk 0:03:00.4]}
10. Qe2 {[%clk 0:02:40.1]} 10... b6 {[%clk 0:02:59.8]} 11. Ne5 {[%clk
0:02:39.9]} 11... Bb7 {[%clk 0:02:59.1]} 12. Ba6 {[%clk 0:02:30.3]} 12... Bxa6
{[%clk 0:02:56]} 13. Qxa6 {[%clk 0:02:31.2]} 13... Nxe5 {[%clk 0:02:55.3]} 14.
dxe5 {[%clk 0:02:29.1]} 14... Nd7 {[%clk 0:02:55.2]} 15. Qe2 {[%clk 0:02:24.1]}
15... Nc5 {[%clk 0:02:43]} 16. Rd1 {[%clk 0:02:23.4]} 16... Qc8 {[%clk
0:02:41.2]} 17. Qg4 {[%clk 0:02:12]} 17... Rd8 {[%clk 0:02:40.4]} 18. Bh6 {[%clk
0:02:10.2]} 18... g6 {[%clk 0:02:39.6]} 19. Bg5 {[%clk 0:02:02.8]} 19... Rxd1+
{[%clk 0:02:03.5]} 20. Rxd1 {[%clk 0:02:01.4]} 20... Qf8 {[%clk 0:01:58.8]} 21.
b4 {[%clk 0:01:34.7]} 21... Na4 {[%clk 0:01:57.8]} 22. Ne4 {[%clk 0:01:30.3]}
22... Rd8 {[%clk 0:01:55.2]} 23. Bxe7 {[%clk 0:00:52.7]} 23... Qxe7 {[%clk
0:01:51.4]} 24. g3 {[%clk 0:00:50.8]} 24... Kg7 {[%clk 0:01:49.2]} 25. h4 {[%clk
0:00:49.7]} 25... h5 {[%clk 0:01:48.2]} 26. Qf3 {[%clk 0:00:47.8]} 26... Rxd1+
{[%clk 0:01:40.5]} 27. Qxd1 {[%clk 0:00:48.7]} 27... b5 {[%clk 0:01:40.9]} 28.
Qd4 {[%clk 0:00:45.6]} 28... Nb6 {[%clk 0:01:38.4]} 29. Nf6 {[%clk 0:00:43.5]}
29... c6 {[%clk 0:01:15.3]} 30. g4 {[%clk 0:00:43.4]} 30... hxg4 {[%clk
0:01:14.8]} 31. h5 {[%clk 0:00:43.9]} 31... Nd5 {[%clk 0:01:10.3]} 32. Nxd5
{[%clk 0:00:23.7]} 32... exd5 {[%clk 0:01:04.7]} 33. e6+ {[%clk 0:00:22.3]}
33... Kh7 {[%clk 0:00:49.1]} 34. hxg6+ {[%clk 0:00:18.8]} 34... fxg6 {[%clk
0:00:43.2]} 35. Qxg4 {[%clk 0:00:16.6]} 35... Kg7 {[%clk 0:00:41.1]} 36. Qd4+
{[%clk 0:00:16.7]} 36... Kh7 {[%clk 0:00:38.9]} 37. Qe5 {[%clk 0:00:16.3]} 37...
Kh6 {[%clk 0:00:36.2]} 38. f4 {[%clk 0:00:11.4]} 38... Kh7 {[%clk 0:00:35.3]}
39. Kg2 {[%clk 0:00:11.4]} 39... Kg8 {[%clk 0:00:35.2]} 40. Qb8+ {[%clk
0:00:09.7]} 40... Kg7 {[%clk 0:00:35.1]} 41. Qe5+ {[%clk 0:00:08.8]} 41... Qf6
{[%clk 0:00:34.4]} 42. Kg3 {[%clk 0:00:05.9]} 42... Qxe5 {[%clk 0:00:31.1]} 43.
fxe5 {[%clk 0:00:06.8]} 43... Kf8 {[%clk 0:00:31.6]} 44. Kg4 {[%clk 0:00:06.8]}
44... Ke7 {[%clk 0:00:32.2]} 45. Kg5 {[%clk 0:00:07.1]} 45... Kxe6 {[%clk
0:00:32.8]} 46. Kxg6 {[%clk 0:00:07.7]} 46... Kxe5 {[%clk 0:00:33.3]} 47. Kf7
{[%clk 0:00:08.5]} 47... Ke4 {[%clk 0:00:30]} 48. Ke6 {[%clk 0:00:09.1]} 48...
Kd3 {[%clk 0:00:30.5]} 49. Kd6 {[%clk 0:00:09.8]} 49... Kxc3 {[%clk 0:00:31.1]}
50. Kxc6 {[%clk 0:00:10.5]} 50... d4 {[%clk 0:00:31.8]} 51. Kxb5 {[%clk
0:00:10.8]} 51... d3 {[%clk 0:00:32.4]} 52. Ka6 {[%clk 0:00:11.7]} 52... d2
{[%clk 0:00:33]} 53. b5 {[%clk 0:00:12.2]} 53... d1=Q {[%clk 0:00:33.4]} 54.
Kxa7 {[%clk 0:00:13.1]} 54... Qa4+ {[%clk 0:00:30.2]} 55. Kb6 {[%clk 0:00:13.4]}
55... Kc4 {[%clk 0:00:30.1]} 0-1

[Event "Late-Titled-Tuesday-Blitz-October-17-2023"]
[Site "Chess.com"]
[Date "2023.10.17"]
[Round "4"]
[White "Resignify"]
[Black "dmarcolino"]
[Result "1/2-1/2"]
[WhiteElo "2325"]
[BlackElo "2098"]
[TimeControl "180+1"]
[EndTime "14:38:58 PDT"]
[Termination "Game drawn by repetition"]

1. e4 {[%clk 0:03:00.9]} 1... c6 {[%clk 0:02:59.7]} 2. Nc3 {[%clk 0:03:00.9]}
2... d5 {[%clk 0:03:00.6]} 3. d4 {[%clk 0:03:01]} 3... dxe4 {[%clk 0:03:00.4]}
4. Nxe4 {[%clk 0:03:01.9]} 4... Nd7 {[%clk 0:03:00.5]} 5. Nf3 {[%clk 0:03:00.7]}
5... Ngf6 {[%clk 0:03:00]} 6. Nxf6+ {[%clk 0:03:00.6]} 6... Nxf6 {[%clk
0:03:00.9]} 7. Bc4 {[%clk 0:03:00.2]} 7... Bf5 {[%clk 0:03:00.4]} 8. O-O {[%clk
0:02:58.1]} 8... e6 {[%clk 0:03:00.5]} 9. Re1 {[%clk 0:02:57.3]} 9... h6 {[%clk
0:02:50.1]} 10. Bf4 {[%clk 0:02:54.1]} 10... Bd6 {[%clk 0:02:50]} 11. Ne5 {[%clk
0:02:52.2]} 11... Nd5 {[%clk 0:02:41.6]} 12. Bd2 {[%clk 0:02:44]} 12... O-O
{[%clk 0:02:35.8]} 13. c3 {[%clk 0:02:36.9]} 13... Bxe5 {[%clk 0:02:32.8]} 14.
Rxe5 {[%clk 0:02:24.2]} 14... Bg6 {[%clk 0:02:27.9]} 15. Qf3 {[%clk 0:02:20.7]}
15... Qf6 {[%clk 0:02:20.1]} 16. Qg3 {[%clk 0:02:13.2]} 16... Rfd8 {[%clk
0:02:11.5]} 17. Rae1 {[%clk 0:02:10.6]} 17... Rac8 {[%clk 0:02:10]} 18. h4
{[%clk 0:02:04.8]} 18... c5 {[%clk 0:01:45.9]} 19. Bxd5 {[%clk 0:01:33.1]} 19...
Rxd5 {[%clk 0:01:43.7]} 20. Rxd5 {[%clk 0:01:27.3]} 20... exd5 {[%clk
0:01:44.6]} 21. dxc5 {[%clk 0:01:18.7]} 21... d4 {[%clk 0:01:45]} 22. Bxh6
{[%clk 0:00:32.8]} 22... gxh6 {[%clk 0:01:35.1]} 23. h5 {[%clk 0:00:31.3]} 23...
dxc3 {[%clk 0:01:35.2]} 24. bxc3 {[%clk 0:00:25.6]} 24... Rxc5 {[%clk
0:01:13.6]} 25. hxg6 {[%clk 0:00:22.4]} 25... Qxg6 {[%clk 0:01:06.6]} 26. Qxg6+
{[%clk 0:00:20]} 26... fxg6 {[%clk 0:01:05.9]} 27. Re7 {[%clk 0:00:19.8]} 27...
Rxc3 {[%clk 0:01:04.4]} 28. Rxb7 {[%clk 0:00:19.7]} 28... Ra3 {[%clk 0:01:05]}
29. Rb2 {[%clk 0:00:11.4]} 29... Kf7 {[%clk 0:01:04.2]} 30. f3 {[%clk
0:00:11.4]} 30... Ke6 {[%clk 0:01:03.5]} 31. Kf2 {[%clk 0:00:11.2]} 31... Kd5
{[%clk 0:01:03.6]} 32. Kg3 {[%clk 0:00:08.4]} 32... Kc4 {[%clk 0:01:01.3]} 33.
Rc2+ {[%clk 0:00:06.2]} 33... Kd5 {[%clk 0:00:59.9]} 34. Kf4 {[%clk 0:00:04.3]}
34... Ra4+ {[%clk 0:00:54.8]} 35. Kg3 {[%clk 0:00:04.5]} 35... a5 {[%clk
0:00:54]} 36. Rb2 {[%clk 0:00:04.8]} 36... Rb4 {[%clk 0:00:53.5]} 37. Rd2+
{[%clk 0:00:04]} 37... Ke5 {[%clk 0:00:49]} 38. Rc2 {[%clk 0:00:03.7]} 38... a4
{[%clk 0:00:45.8]} 39. Rc5+ {[%clk 0:00:03]} 39... Kd6 {[%clk 0:00:41.4]} 40.
Ra5 {[%clk 0:00:03.7]} 40... h5 {[%clk 0:00:39.7]} 41. Ra6+ {[%clk 0:00:03.6]}
41... Kc5 {[%clk 0:00:37.3]} 42. Rxg6 {[%clk 0:00:04]} 42... h4+ {[%clk
0:00:37.8]} 43. Kh3 {[%clk 0:00:03.6]} 43... Rb2 {[%clk 0:00:36.7]} 44. Rg5+
{[%clk 0:00:03]} 44... Kd6 {[%clk 0:00:35.5]} 45. Kxh4 {[%clk 0:00:02.8]} 45...
Rxa2 {[%clk 0:00:35.9]} 46. Ra5 {[%clk 0:00:02.8]} 46... a3 {[%clk 0:00:36.1]}
47. Ra4 {[%clk 0:00:02.9]} 47... Ra1 {[%clk 0:00:35.8]} 48. Ra8 {[%clk
0:00:03.1]} 48... a2 {[%clk 0:00:35.5]} 49. Kg3 {[%clk 0:00:03]} 49... Ke6
{[%clk 0:00:33.2]} 50. Ra6+ {[%clk 0:00:03.6]} 50... Kf7 {[%clk 0:00:33.1]} 51.
Ra7+ {[%clk 0:00:03.9]} 51... Kf8 {[%clk 0:00:33]} 52. Ra8+ {[%clk 0:00:04.5]}
52... Kf7 {[%clk 0:00:33.6]} 53. Ra7+ {[%clk 0:00:05.1]} 53... Kf8 {[%clk
0:00:34.3]} 54. Ra8+ {[%clk 0:00:05.7]} 54... Kf7 {[%clk 0:00:35]} 55. Ra7+
{[%clk 0:00:06.2]} 1/2-1/2